[Event "GEO-ch 1st League 2021"]
[Site "Tbilisi"]
[Date "2021.04.04"]
[Round "7.3"]
[White "Morchiashvili, Bachana"]
[Black "Mindiashvili, Tengiz"]
[Result "1/2-1/2"]
[ECO "E91"]
[WhiteElo "2313"]
[BlackElo "1923"]
[Annotator "RC"]
[PlyCount "98"]
[EventDate "2021.03.29"]
[EventType "swiss"]
[EventCountry "GEO"]
[SourceTitle "playchess.com"]
[Source "ChessBase"]
[SourceQuality "1"]
[TimeControl "5400+30"]

1. d4 {[%emt 0:00:00]} g6 {[%emt 0:00:00]} 2. c4 {[%emt 0:00:00]} Bg7 {[%emt 0:00:00]} 3. e4 {[%emt 0:00:08]} Nc6 {[%emt 0:00:22]} 4. Nf3 {[%emt 0:03:47]} d6 {[%emt 0:00:26]} 5. d5 {[%emt 0:00:16]} Ne5 {[%emt 0:01:12]} 6. Nxe5 {[%emt 0:00:15]} dxe5 {[%emt 0:00:17]} 7. Nc3 {[%emt 0:00:36]} Nf6 {[%emt 0:00:22]} 8. Be2 {[%emt 0:00:19]} O-O {[%emt 0:00:18]} 9. O-O {[%emt 0:02:24]} Ne8 {[%emt 0:02:00]} 10. Be3 {[%emt 0:08:19]} f5 {[%emt 0:00:21]} 11. f3 {[%emt 0:13:12]} f4 {[%emt 0:03:28]} 12. Bf2 {[%emt 0:00:24]} Nf6 {[%emt 0:00:40]} 13. b4 {[%emt 0:04:11]} g5 {[%emt 0:00:54]} 14. c5 {[%emt 0:01:16]} h5 {[%emt 0:01:32]} 15. h3 {[%emt 0:00:20]} a5 {[%emt 0:02:00]} 16. b5 {[%emt 0:00:29]} Qe8 {[%emt 0:00:34]} 17. d6 {[%emt 0:05:34]} cxd6 {[%emt 0:00:56]} 18. cxd6 {[%emt 0:00:13]} Be6 {[%emt 0:00:31]} 19. Nd5 {[%emt 0:10:22]} Bxd5 {[%emt 0:10:08]} 20. dxe7 {[%emt 0:00:05]} Qxe7 {[%emt 0:00:18]} 21. exd5 {[%emt 0:00:03]} Kh8 {[%emt 0:06:33]} 22. Rc1 {[%emt 0:05:30]} Rfc8 {[%emt 0:01:18]} 23. Qd3 {[%emt 0:05:01]} e4 {[%emt 0:01:11]} 24. fxe4 {[%emt 0:00:23]} Qxe4 {[%emt 0:01:12]} 25. Qxe4 {[%emt 0:00:47]} Nxe4 {[%emt 0:00:01]} 26. Bxh5 {[%emt 0:00:47]} Nxf2 {[%emt 0:00:32]} 27. Kxf2 {[%emt 0:00:08]} Bd4+ {[%emt 0:01:06]} 28. Kf3 {[%emt 0:00:34]} Kg7 {[%emt 0:00:20]} 29. Rxc8 {[%emt 0:09:07]} Rxc8 {[%emt 0:00:03]} 30. Rd1 {[%emt 0:00:06]} Bb6 {[%emt 0:04:23]} 31. Kg4 {[%emt 0:03:06]} Kf6 {[%emt 0:00:54]} 32. h4 {[%emt 0:04:05]} gxh4 {[%emt 0:01:38]} 33. Kxf4 {[%emt 0:00:19]} Rc4+ {[%emt 0:00:14]} 34. Kf3 {[%emt 0:00:43]} Rd4 {[%emt 0:00:09]} 35. Rf1 {[%emt 0:06:51]} Kg5 {[%emt 0:01:43]} 36. Bf7 {[%emt 0:00:29]} Rf4+ {[%emt 0:00:08]} 37. Ke2 {[%emt 0:00:03]} Rxf1 {[%emt 0:00:19]} 38. Kxf1 {[%emt 0:00:01]} Kf6 {[%emt 0:00:17]} 39. Be6 {[%emt 0:00:24]} Bc7 {[%emt 0:00:18]} 40. b6 {[%emt 0:03:19]} Bxb6 {[%emt 0:00:14]} 41. Bc8 {[%emt 0:00:02]} Ke5 {[%emt 0:00:18]} 42. Bxb7 {[%emt 0:00:03]} Kd6 {[%emt 0:00:23]} 43. Ke2 {[%emt 0:00:02]} Bd4 {[%emt 0:00:20]} 44. Kd3 {[%emt 0:00:04]} Bg1 {[%emt 0:00:09]} 45. Kc4 {[%emt 0:00:06]} Bf2 {[%emt 0:00:07]} 46. Bc8 {[%emt 0:00:46]} Bg3 {[%emt 0:00:26]} 47. Bg4 {[%emt 0:00:07]} Bf2 {[%emt 0:00:05]} 48. Kb5 {[%emt 0:00:06]} Be1 {[%emt 0:00:08]} 49. Bf3 {[%emt 0:00:03]} Bd2 {[%emt 0:00:07]} 1/2-1/2

[Event "GEO-ch 1st League 2021"]
[Site "Tbilisi"]
[Date "2021.04.04"]
[Round "7.7"]
[White "Tsereteli, Tornike"]
[Black "Esadze, Tamari"]
[Result "0-1"]
[ECO "B22"]
[WhiteElo "1765"]
[BlackElo "1889"]
[Annotator "NA RC"]
[PlyCount "74"]
[EventDate "2021.03.29"]
[EventType "swiss"]
[EventCountry "GEO"]
[SourceTitle "playchess.com"]
[Source "ChessBase"]
[SourceQuality "1"]
[TimeControl "5400+30"]

1. e4 {[%emt 0:03:38]} c5 {[%emt 0:00:00]} 2. c3 {[%emt 0:00:11]} Nf6 {[%emt 0:00:00]} 3. e5 {[%emt 0:00:03]} Nd5 {[%emt 0:00:00]} 4. d4 {[%emt 0:00:02]} cxd4 {[%emt 0:00:00]} 5. Nf3 {[%emt 0:00:01]} Nc6 {[%emt 0:00:00]} 6. Bc4 {[%emt 0:00:03]} Nb6 {[%emt 0:01:06]} 7. Bb3 {[%emt 0:00:01]} d6 {[%emt 0:00:46]} 8. exd6 {[%emt 0:00:05]} Qxd6 {[%emt 0:00:18]} 9. O-O {[%emt 0:00:05]} e6 {[%emt 0:03:59]} 10. cxd4 {[%emt 0:01:10]} Be7 {[%emt 0:00:12]} 11. Nc3 {[%emt 0:00:07]} a6 {[%emt 0:05:36]} 12. Be3 {[%emt 0:04:00]} O-O {[%emt 0:01:30]} 13. Ne4 {[%emt 0:00:33]} Qd8 {[%emt 0:01:12]} 14. Ne5 {[%emt 0:01:14]} Nd5 {[%emt 0:06:04]} 15. Nxc6 {[%emt 0:01:59]} bxc6 {[%emt 0:00:01]} 16. Rc1 {[%emt 0:00:32]} f5 {[%emt 0:06:35]} 17. Nc5 {[%emt 0:04:22]} f4 {[%emt 0:06:52]} 18. Bd2 {[%emt 0:00:03]} f3 {[%emt 0:00:24]} 19. Re1 {[%emt 0:03:47]} Bd6 {[%emt 0:15:08]} 20. Re4 {[%emt 0:06:39]} fxg2 {[%emt 0:05:06]} 21. Kxg2 {[%emt 0:04:21]} Qf6 {[%emt 0:05:08]} 22. Qe2 {[%emt 0:01:40]} Bf4 {[%emt 0:04:14]} 23. Rg1 {[%emt 0:15:57]} Qh6 {[%emt 0:12:59]} 24. Nxe6 {[%emt 0:13:24]} Bxe6 {[%emt 0:01:10]} 25. Rxe6 {[%emt 0:00:15]} Qxh2+ {[%emt 0:00:15]} 26. Kf1 {[%emt 0:00:07]} Bxd2 {[%emt 0:03:31]} 27. Rxc6 {[%emt 0:00:47]} Qh3+ {[%emt 0:04:21]} 28. Rg2 {[%emt 0:00:21]} Kh8 {[%emt 0:01:22]} 29. Bxd5 {[%emt 0:07:33]} Qh1+ {[%emt 0:00:04]} 30. Rg1 {[%emt 0:00:07]} Qxd5 {[%emt 0:00:03]} 31. Rc7 {[%emt 0:00:11]} Bh6 {[%emt 0:01:00]} 32. Rg4 {[%emt 0:03:26]} Rae8 {[%emt 0:01:44]} 33. Re7 {[%emt 0:00:51]} Rxe7 {[%emt 0:02:04]} 34. Qxe7 {[%emt 0:00:08]} Qf3 {[%emt 0:00:07]} 35. Qe2 {[%emt 0:00:38]} Qh3+ {[%emt 0:01:01]} 36. Kg1 {[%emt 0:00:06]} Rc8 {[%emt 0:00:49]} 37. f3 {[%emt 0:00:02]} Bf4 {[%emt 0:04:07]} 0-1

[Event "GEO-ch 1st League 2021"]
[Site "Tbilisi"]
[Date "2021.04.04"]
[Round "7.11"]
[White "Adamia, Jaba"]
[Black "Gabunia, Davit"]
[Result "1-0"]
[ECO "D56"]
[WhiteElo "1899"]
[BlackElo "1715"]
[Annotator "NA RC"]
[PlyCount "67"]
[EventDate "2021.03.29"]
[EventType "swiss"]
[EventCountry "GEO"]
[SourceTitle "playchess.com"]
[Source "ChessBase"]
[SourceQuality "1"]
[TimeControl "5400+30"]

1. d4 {[%emt 0:03:52]} Nf6 {[%emt 0:00:00]} 2. c4 {[%emt 0:00:11]} e6 {[%emt 0:00:00]} 3. Nf3 {[%emt 0:01:53]} b6 {[%emt 0:00:00]} 4. Bg5 {[%emt 0:00:10]} Bb7 {[%emt 0:02:10]} 5. e3 {[%emt 0:00:28]} Be7 {[%emt 0:00:42]} 6. Nc3 {[%emt 0:00:31]} d5 {[%emt 0:00:32]} 7. cxd5 {[%emt 0:02:56]} Nxd5 {[%emt 0:03:30]} 8. Bxe7 {[%emt 0:00:45]} Qxe7 {[%emt 0:03:13]} 9. Rc1 {[%emt 0:04:35]} Nxc3 {[%emt 0:00:39]} 10. Rxc3 {[%emt 0:00:10]} O-O {[%emt 0:00:44]} 11. Qc2 {[%emt 0:02:28]} Rc8 {[%emt 0:02:47]} 12. Bd3 {[%emt 0:02:03]} h6 {[%emt 0:00:06]} 13. O-O {[%emt 0:16:45]} c5 {[%emt 0:05:57]} 14. dxc5 {[%emt 0:03:24]} Rxc5 {[%emt 0:00:25]} 15. Rxc5 {[%emt 0:02:44]} bxc5 {[%emt 0:00:05]} 16. Be4 {[%emt 0:20:46]} Na6 {[%emt 0:01:19]} 17. Bxb7 {[%emt 0:00:35]} Qxb7 {[%emt 0:00:02]} 18. Rd1 {[%emt 0:00:12]} Rb8 {[%emt 0:01:37]} 19. b3 {[%emt 0:04:00]} Qc7 {[%emt 0:00:36]} 20. Qd2 {[%emt 0:06:08]} Nb4 {[%emt 0:01:16]} 21. h3 {[%emt 0:03:31]} Nd5 {[%emt 0:06:25]} 22. Rc1 {[%emt 0:06:13]} Rd8 {[%emt 0:01:27]} 23. Qe2 {[%emt 0:02:27]} Nb6 {[%emt 0:03:18]} 24. Nd4 {[%emt 0:02:13]} Rd5 {[%emt 0:01:37]} 25. Nb5 {[%emt 0:04:50]} Qd7 {[%emt 0:00:52]} 26. a4 {[%emt 0:00:16]} Rd2 {[%emt 0:03:24]} 27. Qf3 {[%emt 0:00:21]} a6 {[%emt 0:01:37]} 28. Nc3 {[%emt 0:00:43]} f5 {[%emt 0:10:09]} 29. a5 {[%emt 0:00:49]} Nd5 {[%emt 0:02:38]} 30. Na4 {[%emt 0:00:14]} Qb5 {[%emt 0:04:13]} 31. Nxc5 {[%emt 0:01:27]} Qxa5 {[%emt 0:00:16]} 32. Nxe6 {[%emt 0:00:40]} Nc3 {[%emt 0:00:07]} 33. Qb7 {[%emt 0:03:34]} Ne2+ {[%emt 0:01:21]} 34. Kh1 {[%emt 0:02:11]} 1-0

[Event "GEO-ch 1st League 2021"]
[Site "Tbilisi"]
[Date "2021.04.04"]
[Round "7.12"]
[White "Tsanatsqenishvili, Alexandre"]
[Black "Elashvili, Giorgi"]
[Result "1-0"]
[ECO "B35"]
[WhiteElo "1702"]
[BlackElo "1857"]
[Annotator "NA"]
[PlyCount "123"]
[EventDate "2021.03.29"]
[EventType "swiss"]
[EventCountry "GEO"]
[SourceTitle "playchess.com"]
[Source "ChessBase"]
[SourceQuality "1"]
[TimeControl "5400+30"]

1. e4 {[%emt 0:00:00]} c5 {[%emt 0:01:15]} 2. Nf3 {[%emt 0:00:00]} Nc6 {[%emt 0:00:05]} 3. d4 {[%emt 0:00:00]} cxd4 {[%emt 0:00:07]} 4. Nxd4 {[%emt 0:00:00]} g6 {[%emt 0:00:17]} 5. Nc3 {[%emt 0:00:05]} Bg7 {[%emt 0:00:19]} 6. Be3 {[%emt 0:00:14]} Nf6 {[%emt 0:01:22]} 7. Bc4 {[%emt 0:00:18]} O-O {[%emt 0:00:28]} 8. Bb3 {[%emt 0:00:26]} Re8 {[%emt 0:02:58]} 9. Nxc6 {[%emt 0:08:58]} dxc6 {[%emt 0:02:02]} 10. Qf3 {[%emt 0:04:18]} e5 {[%emt 0:08:10]} 11. O-O {[%emt 0:12:34]} Qc7 {[%emt 0:01:07]} 12. Bg5 {[%emt 0:03:13]} Bg4 {[%emt 0:06:51]} 13. Qg3 {[%emt 0:01:26]} Be6 {[%emt 0:00:42]} 14. Qh4 {[%emt 0:04:32]} Nh5 {[%emt 0:01:56]} 15. Bxe6 {[%emt 0:06:11]} Rxe6 {[%emt 0:00:21]} 16. Rad1 {[%emt 0:03:36]} Rf8 {[%emt 0:23:47]} 17. Bd8 {[%emt 0:05:26]} Qc8 {[%emt 0:01:09]} 18. Be7 {[%emt 0:00:16]} Re8 {[%emt 0:01:59]} 19. Bc5 {[%emt 0:00:59]} b6 {[%emt 0:12:08]} 20. Be3 {[%emt 0:00:02]} Qc7 {[%emt 0:05:45]} 21. Qg4 {[%emt 0:11:40]} Nf4 {[%emt 0:08:54]} 22. g3 {[%emt 0:02:50]} h5 {[%emt 0:00:24]} 23. Qf3 {[%emt 0:00:17]} Nh3+ {[%emt 0:00:19]} 24. Kg2 {[%emt 0:00:15]} Rf6 {[%emt 0:00:10]} 25. Qe2 {[%emt 0:00:29]} Nf4+ {[%emt 0:06:26]} 26. gxf4 {[%emt 0:03:48]} exf4 {[%emt 0:00:05]} 27. Qc4 {[%emt 0:12:18]} fxe3 {[%emt 0:00:44]} 28. Nd5 {[%emt 0:00:50]} Qc8 {[%emt 0:08:28]} 29. Nxf6+ {[%emt 0:00:13]} Bxf6 {[%emt 0:00:01]} 30. fxe3 {[%emt 0:01:38]} Qg4+ {[%emt 0:00:04]} 31. Kh1 {[%emt 0:00:05]} Rxe4 {[%emt 0:01:37]} 32. Qxc6 {[%emt 0:02:51]} Rxe3 {[%emt 0:00:50]} 33. Rg1 {[%emt 0:01:38]} Qh4 {[%emt 0:01:14]} 34. Rdf1 {[%emt 0:13:18]} Kg7 {[%emt 0:00:28]} 35. c3 {[%emt 0:00:42]} Re6 {[%emt 0:04:21]} 36. Qf3 {[%emt 0:00:11]} g5 {[%emt 0:00:28]} 37. Rg2 {[%emt 0:00:40]} g4 {[%emt 0:00:28]} 38. Qf4 {[%emt 0:00:02]} Re7 {[%emt 0:00:37]} 39. Rgf2 {[%emt 0:00:26]} Bg5 {[%emt 0:00:28] [#]} 40. Qd6 $1 {[%emt 0:01:35]} Qh3 $2 {[%emt 0:00:33] [#]} (40... g3 41. Qxg3 Qxg3 42. hxg3 Kg6) 41. Rf5 $2 {[%emt 0:00:26]} (41. Qd4+ $1 $18 Kg8 42. Qd5) 41... Bh4 $2 {[%emt 0:00:17] [#]} (41... Qe3 $11 42. Qd5 f6) 42. Qd5 $2 {[%emt 0:00:18]} ({White should play} 42. Qd4+ $1 $18 Kg8 43. Qc4) 42... f6 {[%emt 0:00:25]} 43. Qd2 {[%emt 0:01:14]} g3 {[%emt 0:00:37]} (43... Kg6 $11 {remains equal.}) 44. R5f3 {[%emt 0:00:36]} Bg5 {[%emt 0:00:37]} 45. Qg2 {[%emt 0:00:55]} Qxg2+ {[%emt 0:00:33]} 46. Kxg2 {[%emt 0:00:01]} Re2+ {[%emt 0:00:29]} (46... gxh2 $142 47. Kxh2 Re4) 47. Kxg3 {[%emt 0:00:01]} Rxb2 {[%emt 0:00:31]} (47... h4+ $16 48. Kg4 Rxb2) 48. R1f2 {[%emt 0:00:02]} Rb5 $2 {[%emt 0:00:24]} (48... h4+ $16 49. Kg4 Rb1) 49. h4 {[%emt 0:00:26]} Bc1 {[%emt 0:00:38]} 50. Rxf6 {[%emt 0:00:12]} Rc5 {[%emt 0:00:15]} 51. Rf7+ {[%emt 0:00:16]} Kg8 {[%emt 0:00:01]} 52. Rf8+ {[%emt 0:00:02]} Kg7 {[%emt 0:00:07]} 53. R2f7+ {[%emt 0:00:21]} Kg6 {[%emt 0:00:06]} 54. Rf6+ {[%emt 0:00:04]} Kg7 {[%emt 0:00:09]} 55. R8f7+ {[%emt 0:00:02]} Kg8 {[%emt 0:00:06]} 56. Rxa7 {[%emt 0:00:40]} Rxc3+ {[%emt 0:00:06]} 57. Rf3 {[%emt 0:00:02]} Rc6 {[%emt 0:01:09]} 58. Rd3 {[%emt 0:00:20]} Bh6 {[%emt 0:00:29]} 59. Rd8+ {[%emt 0:00:13]} Bf8 {[%emt 0:00:05]} 60. Kf4 $18 {[%emt 0:00:12]} Rg6 {[%emt 0:02:37]} 61. Raa8 {[%emt 0:01:38]} Rf6+ {[%emt 0:00:31]} 62. Kg5 {[%emt 0:00:12]} 1-0

[Event "GEO-ch 1st League 2021"]
[Site "Tbilisi"]
[Date "2021.04.05"]
[Round "8.1"]
[White "Nigalidze, Gaioz"]
[Black "Lortkipanidze, Nodar"]
[Result "1/2-1/2"]
[ECO "D35"]
[WhiteElo "2480"]
[BlackElo "2416"]
[Annotator "ChessBase"]
[PlyCount "76"]
[EventDate "2021.03.29"]
[EventType "swiss"]
[EventCountry "GEO"]
[SourceTitle "playchess.com"]
[Source "ChessBase"]
[SourceQuality "1"]
[TimeControl "5400+30"]

1. d4 {[%emt 0:00:00]} e6 {[%emt 0:03:00]} 2. c4 {[%emt 0:00:00]} Nf6 {[%emt 0:01:07]} 3. Nf3 {[%emt 0:00:00]} d5 {[%emt 0:00:28]} 4. cxd5 {[%emt 0:00:05]} exd5 {[%emt 0:00:58]} 5. Nc3 {[%emt 0:00:05]} c6 {[%emt 0:00:09]} 6. Bg5 {[%emt 0:00:08]} Be7 {[%emt 0:00:48]} 7. Qc2 {[%emt 0:00:07]} g6 {[%emt 0:00:07]} 8. e3 {[%emt 0:00:19]} Bf5 {[%emt 0:00:06]} 9. Bd3 {[%emt 0:00:09]} Bxd3 {[%emt 0:00:52]} 10. Qxd3 {[%emt 0:00:06]} Nbd7 {[%emt 0:00:08]} 11. Bh6 {[%emt 0:00:36]} Bf8 {[%emt 0:00:05]} 12. Bf4 {[%emt 0:00:14]} Be7 {[%emt 0:03:08]} 13. h3 {[%emt 0:00:55]} O-O {[%emt 0:00:26]} 14. g4 {[%emt 0:00:16]} Re8 {[%emt 0:01:00]} 15. O-O-O {[%emt 0:03:13]} Qa5 {[%emt 0:02:37]} 16. Kb1 {[%emt 0:01:46]} Bb4 {[%emt 0:00:30]} 17. Nd2 {[%emt 0:02:14]} Bxc3 {[%emt 0:04:50]} 18. Qxc3 {[%emt 0:01:44]} Qxc3 {[%emt 0:12:05]} 19. bxc3 {[%emt 0:00:46]} Ne4 {[%emt 0:00:04]} 20. Nxe4 {[%emt 0:00:06]} Rxe4 {[%emt 0:00:04]} 21. h4 {[%emt 0:00:07]} f6 {[%emt 0:03:38]} 22. Kc2 {[%emt 0:00:23]} b5 {[%emt 0:00:45]} 23. g5 {[%emt 0:03:35]} fxg5 {[%emt 0:03:26]} 24. hxg5 {[%emt 0:00:21]} Nb6 {[%emt 0:01:01]} 25. Be5 {[%emt 0:01:26]} Nd7 {[%emt 0:03:28]} 26. Bd6 {[%emt 0:02:41]} Re6 {[%emt 0:02:12]} 27. Bf4 {[%emt 0:00:18]} a5 {[%emt 0:05:19]} 28. Rb1 {[%emt 0:01:27]} a4 {[%emt 0:00:26]} 29. Rh4 {[%emt 0:02:35]} Rf8 {[%emt 0:00:31]} 30. Kd3 {[%emt 0:00:41]} Nb6 {[%emt 0:03:12]} 31. Rbh1 {[%emt 0:02:31]} Rf7 {[%emt 0:00:08]} 32. Be5 {[%emt 0:01:45]} Nc4 {[%emt 0:00:11]} 33. Bf6 {[%emt 0:22:29]} h5 {[%emt 0:01:23]} 34. Rf4 {[%emt 0:00:20]} Rf8 {[%emt 0:03:17]} 35. Re1 {[%emt 0:01:54]} Rfe8 {[%emt 0:00:21]} 36. Rh4 {[%emt 0:00:37]} Kf7 {[%emt 0:03:06]} 37. Rh3 {[%emt 0:02:14]} Re4 {[%emt 0:00:25]} 38. Re2 {[%emt 0:00:32]} Rg4 {[%emt 0:00:59]} 1/2-1/2

[Event "GEO-ch 1st League 2021"]
[Site "Tbilisi"]
[Date "2021.04.05"]
[Round "8.2"]
[White "Azaladze, Shota"]
[Black "Tutisani, Noe"]
[Result "1-0"]
[ECO "A04"]
[WhiteElo "2439"]
[BlackElo "2427"]
[Annotator "ChessBase"]
[PlyCount "81"]
[EventDate "2021.03.29"]
[EventType "swiss"]
[EventCountry "GEO"]
[SourceTitle "playchess.com"]
[Source "ChessBase"]
[SourceQuality "1"]
[TimeControl "5400+30"]

1. Nf3 {[%emt 0:00:00]} c5 {[%emt 0:05:01]} 2. g3 {[%emt 0:00:00]} g6 {[%emt 0:00:04]} 3. Bg2 {[%emt 0:00:00]} Bg7 {[%emt 0:00:04]} 4. O-O {[%emt 0:01:38]} Nc6 {[%emt 0:00:02]} 5. c3 {[%emt 0:02:46]} e5 {[%emt 0:00:04]} 6. e4 {[%emt 0:00:03]} Nge7 {[%emt 0:00:03]} 7. d3 {[%emt 0:00:12]} O-O {[%emt 0:00:05]} 8. a3 {[%emt 0:00:02]} d6 {[%emt 0:00:03]} 9. b4 {[%emt 0:00:12]} a6 {[%emt 0:00:02]} 10. Be3 {[%emt 0:07:08]} f5 {[%emt 0:03:44]} 11. exf5 {[%emt 0:10:29]} gxf5 {[%emt 0:02:09]} 12. bxc5 {[%emt 0:04:48]} f4 {[%emt 0:01:33]} 13. Bc1 {[%emt 0:04:06]} d5 {[%emt 0:02:54]} 14. Nbd2 {[%emt 0:03:21]} Qe8 {[%emt 0:00:11]} 15. Qe2 {[%emt 0:04:57]} Qh5 {[%emt 0:13:41]} 16. Rb1 {[%emt 0:00:31]} Bg4 {[%emt 0:01:25]} 17. Rxb7 {[%emt 0:02:42]} Rae8 {[%emt 0:04:31]} 18. Bb2 {[%emt 0:10:12]} Bh6 {[%emt 0:04:27]} 19. h3 {[%emt 0:03:07]} Bxh3 {[%emt 0:03:25]} 20. c4 {[%emt 0:04:41]} fxg3 {[%emt 0:02:07]} 21. fxg3 {[%emt 0:13:23]} Bxg2 {[%emt 0:08:43]} 22. Kxg2 {[%emt 0:01:23]} Nf5 {[%emt 0:01:43]} 23. Rf2 {[%emt 0:03:28]} Ne3+ {[%emt 0:02:17]} 24. Kg1 {[%emt 0:00:03]} Qg6 {[%emt 0:03:47]} 25. cxd5 {[%emt 0:00:28]} Nd4 {[%emt 0:00:43]} 26. Bxd4 {[%emt 0:03:00]} exd4 {[%emt 0:00:32]} 27. Ne4 {[%emt 0:00:09]} Rxe4 {[%emt 0:01:09]} 28. dxe4 {[%emt 0:01:46]} d3 {[%emt 0:08:06]} 29. Qa2 {[%emt 0:00:30]} Qxg3+ {[%emt 0:00:06]} 30. Kh1 {[%emt 0:00:12]} Ng4 {[%emt 0:03:47]} 31. d6+ {[%emt 0:00:34]} Kh8 {[%emt 0:00:02]} 32. Qb2+ {[%emt 0:02:18]} Rf6 {[%emt 0:00:45]} 33. Rb8+ {[%emt 0:10:16]} Bf8 {[%emt 0:00:29]} 34. Rxf8+ {[%emt 0:01:16]} Kg7 {[%emt 0:01:05]} 35. Qxf6+ {[%emt 0:00:13]} Nxf6 {[%emt 0:00:01]} 36. Rg2 {[%emt 0:00:06]} Qxg2+ {[%emt 0:00:03]} 37. Kxg2 {[%emt 0:00:02]} Kxf8 {[%emt 0:00:04]} 38. e5 {[%emt 0:00:57]} Ne4 {[%emt 0:00:24]} 39. c6 {[%emt 0:00:07]} Ke8 {[%emt 0:00:04]} 40. c7 {[%emt 0:01:06]} Kd7 {[%emt 0:00:02]} 41. Kf1 {[%emt 0:00:04]} 1-0

[Event "GEO-ch 1st League 2021"]
[Site "Tbilisi"]
[Date "2021.04.05"]
[Round "8.3"]
[White "Mindiashvili, Tengiz"]
[Black "Petriashvili, Nikoloz"]
[Result "0-1"]
[ECO "B34"]
[WhiteElo "1923"]
[BlackElo "2425"]
[Annotator "ChessBase"]
[PlyCount "59"]
[EventDate "2021.03.29"]
[EventType "swiss"]
[EventCountry "GEO"]
[SourceTitle "playchess.com"]
[Source "ChessBase"]
[SourceQuality "1"]
[TimeControl "5400+30"]

1. e4 {[%emt 0:00:00]} c5 {[%emt 0:00:00]} 2. Nf3 {[%emt 0:00:00]} Nc6 {[%emt 0:00:00]} 3. d4 {[%emt 0:00:00]} cxd4 {[%emt 0:00:00]} 4. Nxd4 {[%emt 0:00:00]} g6 {[%emt 0:00:00]} 5. Nc3 {[%emt 0:00:19]} Bg7 {[%emt 0:00:00]} 6. Be3 {[%emt 0:00:07]} Nf6 {[%emt 0:00:00]} 7. Nxc6 {[%emt 0:00:23]} bxc6 {[%emt 0:00:00]} 8. e5 {[%emt 0:00:01]} Ng8 {[%emt 0:00:00]} 9. Bd4 {[%emt 0:00:14]} Qa5 {[%emt 0:00:00]} 10. Qd2 {[%emt 0:00:15]} c5 {[%emt 0:11:27]} 11. Be3 {[%emt 0:03:53]} Bxe5 {[%emt 0:01:14]} 12. Bc4 {[%emt 0:04:13]} Nf6 {[%emt 0:01:09]} 13. O-O {[%emt 0:03:54]} d6 {[%emt 0:24:03]} 14. Rfe1 {[%emt 0:10:33]} Rb8 {[%emt 0:00:22]} 15. Bf4 {[%emt 0:01:04]} Nd7 {[%emt 0:03:22]} 16. Bxe5 {[%emt 0:07:25]} Nxe5 {[%emt 0:00:17]} 17. Rxe5 {[%emt 0:01:46]} dxe5 {[%emt 0:00:01]} 18. Qd5 {[%emt 0:00:01]} O-O {[%emt 0:07:20]} 19. Qxe5 {[%emt 0:00:11]} Rxb2 {[%emt 0:01:05]} 20. Nd5 {[%emt 0:01:00]} Rb7 {[%emt 0:00:07]} 21. h4 {[%emt 0:08:42]} Qd2 {[%emt 0:03:48]} 22. Ba6 {[%emt 0:02:48]} Rd7 {[%emt 0:09:19]} 23. Bd3 {[%emt 0:00:48]} f6 {[%emt 0:09:41]} 24. Nxe7+ {[%emt 0:03:02]} Kf7 {[%emt 0:00:13]} 25. Bc4+ {[%emt 0:00:28]} Kg7 {[%emt 0:00:06]} 26. Qe6 {[%emt 0:08:27]} Qd1+ {[%emt 0:01:34]} 27. Bf1 {[%emt 0:00:57]} Qxa1 {[%emt 0:00:28]} 28. Nxc8 {[%emt 0:00:15]} Rd1 {[%emt 0:00:21]} 29. Qe7+ {[%emt 0:00:14]} Rf7 {[%emt 0:00:03]} 30. Qe2 {[%emt 0:00:11]} 0-1